Cogmind - Beta 9.6 @@@ ROGUE MODE // 2020.05.06 @ 17:07:01 Player: 3.14 Result: Escaped! Performance ------------- Evolutions (9) 4500 Regions Visited (32) 6400 Robots Destroyed (360) 1800 Value Destroyed (15082) 15082 Prototype IDs (43) 860 Alien Tech Used (0) 0 Bonus (7246) 7246 TOTAL SCORE: 35888 Bonus ------- High Alert Combat Kills 1328 Follower Combat Kills 746 Entered Garrisons 1200 Used RIF Installer 1500 Aligned with FarCom 300 Met Data Miner 300 Met Zhirov 300 Read Decrypted Archives 300 Win 3000 Friendly Fire -1728 Cogmind --------- Core Integrity 729/1600 Matter 222/300 Energy 422/490 System Corruption 16% Temperature Cool (443) Movement Hovering (45) Location To Epsilon Eridani Parts ------- > --- POWER (3) -------- Micro Fission Core Micro Fission Core Quantum Reactor > --- PROPULSION (6) --- Improved Antigrav System Improved Antigrav System Improved Antigrav System Improved Antigrav System Improved Gyrokinetic Inverter Combat Antigrav System > --- UTILITY (10) ----- Advanced Heat Sink Large Storage Unit Advanced Target Analyzer Advanced Core Analyzer Reaction Control System Improved Power Shielding Heavy Armor Plating Heavy Reactive Plating > --- WEAPON (6) ------- Lance Lance > --- INVENTORY (10) --- Improved Gyrokinetic Inverter Combat Antigrav System Advanced Melee Analysis Suite Armor Integrity Analyzer Reaction Control System Hacking Suite Improved System Shield Advanced System Shield Long-range Proton Cannon Micro-nuke Launcher Peak State ------------ > --- POWER ------------ Cold Fusion Reactor Compact Particle Reactor > --- PROPULSION ------- Armored Heavy Treads Armored Heavy Treads Biometal Heavy Treads > --- UTILITY ---------- Advanced Heat Sink Large Storage Unit Large Storage Unit High-capacity Storage Unit Makeshift Salvage Targeting Computer Advanced Target Analyzer Advanced Core Analyzer Armor Integrity Analyzer Medium Regenerative Plating > --- WEAPON ----------- Coil Gun Heavy Machine Gun Heavy Machine Gun Heavy Machine Gun Railgun Railgun > --- INVENTORY -------- Reinforced Antimatter Reactor Medium Treads Medium Treads Biometal Heavy Treads Advanced Heat Sink Advanced Energy Well Matter Compressor Matter Compressor Advanced Signal Interpreter Experimental Signal Interpreter Improved Powered Armor Advanced System Shield AWS/Thermal Proton Cannon Heavy Machine Gun Railgun Railgun Improved KE Penetrator Improved KE Penetrator Improved Grenade Launcher Improved Remote Datajack Scythe [Rating: 149] Favorites ----------- Power Improved Ion Engine Engine Improved Ion Engine Power Core Light Nuclear Core Reactor Compact Particle Reactor Propulsion Medium Treads Treads Medium Treads Leg Flexi-carbon Leg Hover Unit Improved Antigrav System Utility Large Storage Unit Device Advanced Heat Sink Storage Large Storage Unit Processor Makeshift Salvage Targeting Computer Hackware Advanced Hacking Suite Protection Improved Powered Armor Weapon Improved Assault Rifle Energy Gun Phase Gun Energy Cannon Improved EM Pulse Cannon Ballistic Gun Improved Assault Rifle Launcher Improved Grenade Launcher Slashing Weapon Scythe Piercing Weapon Lance Build | -11 -10 -10 -9 -9 -9 -8 -8 -8 -8 -7 -7 -7 -7 -6 -6 -6 -6 -6 -5 -5 -5 -5 -5 -5 -4 -4 -4 -3 -3 -2 -2 -1 ------- Run | Scr Mat Min Mat Min Exi Min Mat Gar Mat Fac Low Low Dat Pro Fac Gar Fac Gar Fac Ext Cet Arc Hub Gar Fac Was Fac Res Gar Res Gar Acc Slots Evolved 18 | . . . 2 . . . 2 . . 2 . . . . 2 . . . 2 . . . . . 2 . . 2 . 2 . 2 Power 2 | . . . . . . . . . . . . . . . . . . . 1 . . . . . . . . . . . . 1 Propulsion 4 | . . . . . . . 1 . . 1 . . . . . . . . . . . . . . 1 . . 1 . . . . Utility 8 | . . . . . . . 1 . . 1 . . . . 2 . . . 1 . . . . . 1 . . 1 . . . 1 Weapon 4 | . . . 2 . . . . . . . . . . . . . . . . . . . . . . . . . . 2 . . Parts Attached 439 | 7 8 . 10 . 2 . 10 1 13 35 20 1 1 8 49 9 1 16 23 24 20 3 . 15 7 1 12 30 13 18 23 59 Power 37 | 1 1 . . . . . . . . 2 1 . . . 5 . . 1 2 3 1 . . . . . 1 3 2 . 2 12 Engine 12 | 1 1 . . . . . . . . 1 1 . . . 4 . . 1 1 2 . . . . . . . . . . . . Core 4 | . . . . . . . . . . 1 . . . . 1 . . . . . . . . . . . . . . . . 2 Reactor 21 | . . . . . . . . . . . . . . . . . . . 1 1 1 . . . . . 1 3 2 . 2 10 Propulsion 91 | 2 1 . 4 . . . 6 . . 7 1 . . . 13 . 1 6 5 3 4 . . 3 1 . . 4 . 2 5 23 Treads 57 | 2 1 . 4 . . . 6 . . 7 1 . . . 2 . . 4 5 3 4 . . 3 1 . . 4 . 2 3 5 Leg 17 | . . . . . . . . . . . . . . . 11 . 1 2 . . . . . . . . . . . . 2 1 Wheel . | . . . . . . . . . . . . . . . . . . . . . . . . . . . . . . . . . Hover 17 | . . . . . . . . . . . . . . . . . . . . . . . . . . . . . . . . 17 Flight . | . . . . . . . . . . . . . . . . . . . . . . . . . . . . . . . . . Utility 112 | 2 1 . 1 . 2 . 1 . 4 4 7 1 1 3 5 3 . . 6 10 5 . . 4 2 1 6 9 3 8 8 15 Device 37 | . . . . . . . 1 . . . 3 1 . 2 . . . . 1 1 2 . . 2 1 1 5 1 2 2 7 5 Storage 14 | 2 1 . 1 . 2 . . . 2 . . . . . 1 . . . . 3 . . . . . . . . . . . 2 Processor 16 | . . . . . . . . . . . . . . . 3 . . . 4 1 . . . . 1 . . 3 . 3 . 1 Hackware 2 | . . . . . . . . . . . . . . . . . . . . . . . . . . . . 1 . 1 . . Protection 43 | . . . . . . . . . 2 4 4 . 1 1 1 3 . . 1 5 3 . . 2 . . 1 4 1 2 1 7 Artifact . | . . . . . . . . . . . . . . . . . . . . . . . . . . . . . . . . . Weapon 199 | 2 5 . 5 . . . 3 1 9 22 11 . . 5 26 6 . 9 10 8 10 3 . 8 4 . 5 14 8 8 8 9 Energy Gun 7 | . . . . . . . . . 1 . . . . . . . . . . . . . . . . . . . . . 6 . Energy Cannon 2 | . . . . . . . . . . . . . . 1 . . . . . . . . . . . . . . . . . 1 Ballistic Gun 156 | 2 4 . 5 . . . 2 1 5 16 9 . . 2 22 6 . 8 7 8 10 3 . 7 4 . 5 11 6 7 2 4 Ballistic Cannon . | . . . . . . . . . . . . . . . . . . . . . . . . . . . . . . . . . Launcher 13 | . 1 . . . . . 1 . . 1 2 . . . 3 . . 1 . . . . . 1 . . . . 2 . . 1 Special Weapon . | . . . . . . . . . . . . . . . . . . . . . . . . . . . . . . . . . Impact Weapon . | . . . . . . . . . . . . . . . . . . . . . . . . . . . . . . . . . Slashing Weapon 18 | . . . . . . . . . 3 5 . . . 2 1 . . . 3 . . . . . . . . 3 . 1 . . Piercing Weapon 3 | . . . . . . . . . . . . . . . . . . . . . . . . . . . . . . . . 3 Special Melee Weapon . | . . . . . . . . . . . . . . . . . . . . . . . . . . . . . . . . . Unidentified Prototypes 14 | . 1 . . . . . . . 1 . . . . . . . . . 2 4 3 . . . . . 1 1 . . . 1 Parts Lost 50 | . . . . . . . . 1 . 2 . . . . 14 4 . . . . 6 . . . . . 1 . 5 4 6 7 Power 7 | . . . . . . . . . . 1 . . . . 2 . . . . . . . . . . . . . 1 . . 3 Propulsion 12 | . . . . . . . . . . . . . . . 5 . . . . . 3 . . . . . . . . . 3 1 Utility 11 | . . . . . . . . . . . . . . . 1 1 . . . . . . . . . . 1 . 2 1 3 2 Weapon 20 | . . . . . . . . 1 . 1 . . . . 6 3 . . . . 3 . . . . . . . 2 3 . 1 Highest Loss Streak 6 | . . . . . . . . 1 . 1 . . . . 5 4 . . . . 6 . . . . . 1 . 3 2 4 3 Average Slot Usage (%) 92 | . 98 100 100 100 100 100 91 100 100 99 99 100 100 100 91 99 100 99 100 100 95 94 94 94 89 89 88 85 85 83 64 65 Engine 4 | . 14 14 11 11 11 11 9 9 9 2 3 7 7 7 4 6 6 6 5 4 . . . . . . . . . . . . Reactor 3 | . . . . . . . . . . . . . . . . . . . 4 5 11 11 11 11 10 10 10 9 9 7 4 6 Treads 19 | . 28 28 22 22 22 22 27 27 27 30 30 30 30 30 7 . . 3 23 23 19 17 17 17 15 15 15 14 14 13 15 1 Leg 2 | . . . . . . . . . . . . . . . 16 26 26 21 . . . . . . . . . . . . . . Hover 1 | . . . . . . . . . . . . . . . . . . . . . . . . . . . . . . . . 19 Device 2 | . . . . . . . 1 9 4 . 4 7 7 6 . . . . . . 1 . . 3 . 5 4 . 3 3 9 7 Storage 17 | . 28 28 22 22 22 22 18 18 19 23 23 23 23 23 20 20 20 20 17 17 17 17 17 17 15 15 15 14 14 12 . 3 Processor 9 | . . . . . . . . . . . . . . . 13 13 13 13 17 17 17 17 17 17 21 21 21 19 17 15 18 7 Protection 3 | . . . . . . . . . 2 7 2 . . . 1 5 6 6 5 5 3 5 5 1 5 . . 3 5 3 2 7 Ballistic Gun 24 | . 26 28 44 44 44 44 34 36 32 28 29 30 30 25 25 26 26 25 22 23 22 23 23 22 21 21 21 18 18 24 2 . Naked Turns . | . . . . . . . . . . . . . . . . . . . . . . . . . . . . . . . . . Heaviest Build 139 | 16 21 21 31 31 67 67 68 68 83 91 93 80 86 96 93 99 99 101 117 118 127 127 121 121 121 122 122 125 131 139 84 117 Greatest Support 235 | 40 40 40 40 40 40 40 84 84 84 104 96 96 96 96 104 76 76 80 106 113 126 126 126 140 190 190 190 230 190 195 195 235 Greatest Overweight (x) 4 | . . . . . 1 1 1 . . 1 . . . . 4 1 1 1 1 1 1 1 . . . . . . . . 2 1 Average Overweight (x) . | . . . . . . 1 . . . . . . . . . 1 1 1 1 . . . . . . . . . . . . . Largest Inventory Capacity 24 | 8 8 8 10 10 18 18 18 18 24 24 24 24 24 24 24 24 24 24 24 24 24 24 24 24 24 24 24 24 24 24 4 18 Average Capacity 20 | 5 8 8 9 10 16 18 18 18 19 24 24 24 24 24 24 24 24 24 24 24 24 24 24 24 24 24 24 24 24 22 4 9 Most Carried 24 | 4 8 8 10 10 13 13 18 18 22 24 24 24 24 24 24 24 24 24 24 24 24 24 24 24 24 24 24 24 24 24 4 10 Average Carried 19 | 2 7 8 9 10 11 13 17 17 18 23 23 24 24 23 22 23 23 23 23 23 22 23 24 23 23 23 22 22 22 21 3 8 Final Capacity 24 | 8 8 8 10 10 18 18 18 18 24 24 24 24 24 24 24 24 24 24 24 24 24 24 24 24 24 24 24 24 24 4 4 10 Final Carried 24 | 4 8 8 10 10 13 13 18 17 22 24 24 24 24 24 24 24 24 24 24 24 24 24 24 24 24 24 22 23 24 4 4 10 Class Distribution -------------------- 38% | Scavenger-Gunner 21% | Scavenger-Skirmisher 8% | Skirmisher 8% | Scavenger-Mutant 5% | Scavenger-Executioner 5% | Mutant 4% | Hauler-Skirmisher 3% | Gunner Dominant Class ---------------- Mutant | -10/Materials Mutant | -10/Mines Scavenger-Gunner | -9/Materials Scavenger-Gunner | -9/Mines Gunner | -9/Exiles Skirmisher | -8/Mines Skirmisher | -8/Materials Skirmisher | -8/Garrison Skirmisher | -8/Materials Scavenger-Skirmisher | -7/Factory Scavenger-Skirmisher | -7/Lower Caves Scavenger-Skirmisher | -7/Lower Caves Scavenger-Skirmisher | -7/Data Miner Scavenger-Skirmisher | -6/Proximity Caves Scavenger-Skirmisher | -6/Factory Scavenger-Skirmisher | -6/Garrison Scavenger-Skirmisher | -6/Factory Scavenger-Skirmisher | -6/Garrison Scavenger-Gunner | -5/Factory Scavenger-Gunner | -5/Extension Scavenger-Gunner | -5/Cetus Scavenger-Gunner | -5/Archives Scavenger-Gunner | -5/Hub_04(d) Scavenger-Gunner | -5/Garrison Scavenger-Gunner | -4/Factory Scavenger-Gunner | -4/Waste Scavenger-Gunner | -4/Factory Scavenger-Gunner | -3/Research Scavenger-Gunner | -3/Garrison Scavenger-Executioner | -2/Research Scavenger-Executioner | -2/Garrison Scavenger-Mutant | -1/Access Resources | -11 -10 -10 -9 -9 -9 -8 -8 -8 -8 -7 -7 -7 -7 -6 -6 -6 -6 -6 -5 -5 -5 -5 -5 -5 -4 -4 -4 -3 -3 -2 -2 -1 ----------- Run | Scr Mat Min Mat Min Exi Min Mat Gar Mat Fac Low Low Dat Pro Fac Gar Fac Gar Fac Ext Cet Arc Hub Gar Fac Was Fac Res Gar Res Gar Acc Matter Collected 16552 | 278 260 39 355 . . 106 302 429 413 1320 568 30 . 70 1759 278 . 566 623 1607 822 150 . 1334 . 550 432 713 1554 1044 339 611 Remotely . | . . . . . . . . . . . . . . . . . . . . . . . . . . . . . . . . . Salvage Created 21108 | 81 484 . 233 . . 110 640 289 697 1487 632 44 . 70 2607 278 . 354 357 2967 768 . . 570 . 1134 734 934 1464 1553 964 1657 Parts 1148 | 3 24 . 17 . . 3 42 9 48 66 34 3 . 3 143 11 . 26 22 164 68 . . 35 . 27 46 56 75 102 38 83 Haulers Intercepted 7 | . 2 . 1 . . . . . 1 1 . . . . . . . . . 1 . . . . . . . . . 1 . . Recyclers Shooed 24 | . . . 2 . . . . . . 1 . . . . 12 . . . . 3 . . . . . . 2 1 . 1 . 2 Parts Field Recycled 1 | . . . . . . . . . . . . . . . . . . . . . . . . . . . . . . . . 1 Retrieved Matter 14 | . . . . . . . . . . . . . . . . . . . . . . . . . . . . . . . . 14 Parts Self-Destructed 35 | . . . . . . . . . . . 30 5 . . . . . . . . . . . . . . . . . . . . Prevented 10 | . . . . . . . . . . . 7 . . 3 . . . . . . . . . . . . . . . . . . Kills | -11 -10 -10 -9 -9 -9 -8 -8 -8 -8 -7 -7 -7 -7 -6 -6 -6 -6 -6 -5 -5 -5 -5 -5 -5 -4 -4 -4 -3 -3 -2 -2 -1 ------- Run | Scr Mat Min Mat Min Exi Min Mat Gar Mat Fac Low Low Dat Pro Fac Gar Fac Gar Fac Ext Cet Arc Hub Gar Fac Was Fac Res Gar Res Gar Acc Combat Hostiles Destroyed 270 | . 8 . 7 . . 2 16 5 13 22 12 1 . 1 18 4 . 7 3 31 13 . . 10 . 4 6 12 27 15 13 20 Melee 14 | . . . . . . . . . . . . . . . . . . . . . . . . . . . . . . . . 14 Guns 221 | . 4 . 7 . . 2 12 5 13 21 9 1 . . 13 4 . 3 3 30 13 . . 10 . 4 6 12 21 15 13 . AOE 31 | . 4 . . . . . 4 . . 1 3 . . . 3 . . 4 . . . . . . . . . . 6 . . 6 Classes Destroyed 18 | 1 3 . 2 . . . 2 . . 1 2 . . . . . . 1 1 3 . . . . . 1 . . 1 . . . Worker 26 | . 2 . 1 . . . 3 . 2 5 . . . . 6 . . . . 2 . . . . . . . . . 3 . 2 Builder 15 | . . . . . . . 2 . 1 1 . . . . 5 . . . . 3 . . . . . . . . . 2 . 1 Tunneler 2 | . . . . . . . 1 . . . . . . . . . . . . 1 . . . . . . . . . . . . Hauler 7 | . 2 . 1 . . . . . 1 1 . . . . . . . . . 1 . . . . . . . . . 1 . . Recycler 29 | 1 . . . . . . . . . 8 . . . . 9 . . . 1 5 . . . . . . 2 . . . . 3 Carrier 1 | . . . . . . . . . . . . . . . . . . . . 1 . . . . . . . . . . . . Operator 3 | . . . . . . . . . . . . . . . . . . . 1 . . . . . . . 1 . . . . 1 Watcher 5 | . . . . . . . . . . . . . . . . . . . . 2 1 . . . . . 1 . . . . 1 Swarmer 85 | . . . 5 . . . 6 . 2 10 1 . . . 3 . . . . 16 5 . . 5 . . 2 3 16 . 5 6 Grunt 86 | . 8 . . . . 2 8 5 6 5 6 . . . 6 3 . 4 . 8 . . . 2 . . 2 3 8 5 5 . Brawler 6 | . . . . . . . . . . . 1 . . . . . . . . . . . . 2 . . . 1 1 . 1 . Duelist 3 | . . . . . . . . . . . . . . . . . . . . . . . . . . . . . 1 2 . . Sentry 36 | . . . 2 . . . 2 . 5 5 . . . . 1 1 . 2 . 6 . . . . . . . 3 . 3 2 4 Specialist 1 | . . . . . . . . . . . . . . . . . . 1 . . . . . . . . . . . . . . Hunter 13 | . . . . . . . . . . . 3 . . 1 7 . . . . . 2 . . . . . . . . . . . Programmer 29 | . . . . . . . . . . 2 1 1 . . 1 . . . 3 . 2 . . . . . 2 2 . 5 . 10 Behemoth 3 | . . . . . . . . . . . . . . . . . . . . 1 . . . 1 . . . . 1 . . . Compactor 4 | . . . . . . . . . . . . . . . . . . . . . . . . . . 4 . . . . . . Cetus Guard 4 | . . . . . . . . . . . . . . . . . . . . . 4 . . . . . . . . . . . Thug 1 | . . . . . . . . . . . . . . . . . . . . 1 . . . . . . . . . . . . Guerrilla 1 | . . . . . . . . . . . . . . . . . . . . 1 . . . . . . . . . . . . Best Kill Streak 12 | 1 6 . 4 . . 2 7 3 5 10 6 1 . 1 8 2 . 4 2 9 12 . . 5 . 4 4 7 6 8 5 9 Combat Bots Only 11 | . 4 . 3 . . 2 4 3 5 7 6 1 . 1 4 2 . 4 2 7 11 . . 5 . 4 2 7 6 4 5 7 Max Kills in Single Turn 8 | 1 3 . 2 . . 1 3 1 2 8 2 1 . 1 3 1 . 3 1 3 2 . . 4 . 1 2 1 3 3 1 5 Gunslinging 2 | . . . 1 . . . . . 1 . . . . . 1 . . . . 2 1 . . 2 . . . . 1 . . . Exploded 5 | . 3 . . . . . 2 . . 1 2 . . . 1 . . 3 . . . . . . . . . . 3 . . 5 Melee 1 | . . . . . . . . . . . . . . . . . . . . . . . . . . . . . . . . 1 Uniques/NPCs Destroyed . | . . . . . . . . . . . . . . . . . . . . . . . . . . . . . . . . . Combat | -11 -10 -10 -9 -9 -9 -8 -8 -8 -8 -7 -7 -7 -7 -6 -6 -6 -6 -6 -5 -5 -5 -5 -5 -5 -4 -4 -4 -3 -3 -2 -2 -1 -------- Run | Scr Mat Min Mat Min Exi Min Mat Gar Mat Fac Low Low Dat Pro Fac Gar Fac Gar Fac Ext Cet Arc Hub Gar Fac Was Fac Res Gar Res Gar Acc Damage Taken 24696 | . 261 . 206 . . 97 406 227 426 1410 784 32 . 147 2842 685 . 434 210 1255 1960 20 . 706 . . 679 1069 2940 2604 2110 3186 Core 2659 | . 59 . 24 . . 16 30 45 116 152 123 . . 34 192 31 . 67 28 125 234 . . 83 . . 55 40 124 131 79 871 Absorbed by Shields 1336 | . . . . . . . . 48 . . . . . . . . . 62 . 8 . . . 358 . . . . 385 . 475 . Reduced by Siege Mode 342 | . . . . . . . . . . . . . . . . . . . . . . . . . . . . 100 117 95 30 . Core Remaining (%) 74 | 100 . 76 . . . 90 . . 65 . . . . 55 . . . 65 . . . . . 53 . . 95 . 87 . 85 45 Volleys Fired 672 | 2 22 . 18 . . 5 30 16 30 51 28 2 . 4 83 20 . 18 13 76 37 1 . 32 2 13 21 28 57 35 20 8 Largest 6 | 2 2 . 4 . . 4 4 4 4 4 4 4 . 1 4 4 . 4 4 4 4 4 . 4 4 4 4 4 4 6 5 4 Hottest 374 | 40 46 . 92 . . 92 92 92 92 104 109 80 . 69 112 109 . 107 121 129 135 114 . 114 111 135 118 135 135 190 374 160 Shots Fired 2607 | 4 41 . 72 . . 20 108 64 120 200 81 8 . 4 283 72 . 53 52 303 139 4 . 127 8 51 84 112 209 208 166 14 Gun 2557 | 4 38 . 72 . . 20 104 64 120 199 71 8 . . 269 72 . 50 52 303 139 4 . 127 8 51 84 112 204 208 166 8 Cannon 8 | . . . . . . . . . . . . . . 4 . . . . . . . . . . . . . . . . . 4 Launcher 42 | . 3 . . . . . 4 . . 1 10 . . . 14 . . 3 . . . . . . . . . . 5 . . 2 Special . | . . . . . . . . . . . . . . . . . . . . . . . . . . . . . . . . . Kinetic 2411 | 4 38 . 72 . . 20 104 64 120 199 71 8 . . 269 72 . 50 52 303 139 4 . 127 8 51 84 112 204 208 20 8 Thermal 146 | . . . . . . . . . . . . . . . . . . . . . . . . . . . . . . . 146 . Explosive 17 | . . . . . . . 4 . . . . . . . 3 . . 3 . . . . . . . . . . 5 . . 2 Electromagnetic 33 | . 3 . . . . . . . . 1 10 . . 4 11 . . . . . . . . . . . . . . . . 4 Robot Hit Streak 37 | 2 12 . 24 . . 11 37 10 14 25 12 3 . 6 9 7 . 10 11 29 16 2 . 20 24 15 14 24 26 35 29 15 Robot Miss Streak 11 | 1 2 . 6 . . 1 4 2 4 6 4 1 . . 11 4 . 5 3 6 2 1 . 2 1 1 4 5 2 3 3 1 Penetration Max 2 | . . . . . . . . . . . . . . . 1 . . . . 1 1 1 . 1 1 . 1 1 1 2 . . Secondary Targets 58 | . 1 . 2 . . 1 2 2 3 5 1 . . . 6 . . . . 6 6 . . 3 . . 3 5 6 4 2 . Max Gunslinging Chain 2 | . 1 . 1 . . 1 1 1 1 1 1 . . . 1 . . . . 2 1 . . 2 . . 1 1 1 1 1 . Autonomous 77 | . . . . . . . . . . . . . . . . . . . . . . . . . . . . . . . 77 . Shots Hit Robots 1864 | 2 30 . 42 . . 16 66 38 77 144 64 5 . 4 173 45 . 33 42 186 107 2 . 106 7 34 53 88 152 144 125 79 Core Hits 927 | 2 22 . 17 . . 6 35 13 32 82 50 3 . 1 115 11 . 29 21 104 43 . . 23 . 16 27 40 73 64 47 51 Critical Hits 121 | . . . . . . . . . . . 1 . . . 7 5 . 1 2 19 8 . . 1 . 8 7 20 12 13 3 14 Critical Kills 40 | . . . . . . . . . . . 1 . . . 3 . . . . 7 3 . . . . 2 2 7 4 3 1 7 Critical Parts Destroyed 63 | . . . . . . . . . . . . . . . 4 5 . 1 1 9 5 . . . . 3 4 8 8 10 . 5 Melee Attacks 198 | . . . . . . . . . 18 12 . . . 10 2 . . . 9 . . . . . . . . 9 . 21 . 117 Impact . | . . . . . . . . . . . . . . . . . . . . . . . . . . . . . . . . . Slashing 81 | . . . . . . . . . 18 12 . . . 10 2 . . . 9 . . . . . . . . 9 . 21 . . Piercing 117 | . . . . . . . . . . . . . . . . . . . . . . . . . . . . . . . . 117 Sneak Attacks 13 | . . . . . . . . . . 2 . . . . . . . . . . . . . . . . . . . . . 11 Combat Hostiles . | . . . . . . . . . . . . . . . . . . . . . . . . . . . . . . . . . Follow-up Attacks 12 | . . . . . . . . . . . . . . . . . . . . . . . . . . . . . . . . 12 Damage Inflicted 46136 | 32 749 . 637 . . 212 1421 547 1072 3578 906 89 . 120 4257 810 . 1009 771 5627 2224 108 . 1948 89 1033 1583 2034 3815 3453 3403 4609 Guns 36541 | 32 449 . 623 . . 212 995 547 1072 2292 682 89 . . 3173 810 . 519 754 5366 2224 108 . 1948 89 1033 1543 2031 3036 3446 3403 65 Cannons 120 | . . . . . . . . . . . . . . 120 . . . . . . . . . . . . . . . . . . Explosions 5594 | . 293 . . . . . 398 . . 1054 224 . . . 1084 . . 490 . 217 . . . . . . . . 779 . . 1055 Melee 3633 | . . . . . . . . . . 216 . . . . . . . . . . . . . . . . . . . . . 3417 Ramming 248 | . 7 . 14 . . . 28 . . 16 . . . . . . . . 17 44 . . . . . . 40 3 . 7 . 72 Kinetic 33483 | 32 449 . 623 . . 212 995 547 1072 2292 682 89 . . 3173 810 . 519 754 5366 2224 108 . 1948 89 1033 1543 2031 3036 3446 345 65 Thermal 4604 | . 132 . . . . . . . . 1009 . . . . 188 . . . . 217 . . . . . . . . . . 3058 . Explosive 3140 | . . . . . . . 398 . . . . . . . 418 . . 490 . . . . . . . . . . 779 . . 1055 Electromagnetic 1028 | . 161 . . . . . . . . 45 224 . . 120 478 . . . . . . . . . . . . . . . . . Impact . | . . . . . . . . . . . . . . . . . . . . . . . . . . . . . . . . . Slashing 216 | . . . . . . . . . . 216 . . . . . . . . . . . . . . . . . . . . . . Piercing 3417 | . . . . . . . . . . . . . . . . . . . . . . . . . . . . . . . . 3417 Highest Corruption 16 | . . . . . . . . . . 2 2 2 2 2 3 3 3 3 1 1 1 1 1 1 . 15 16 . 8 3 3 16 Average Corruption 3 | . . . . . . . . . . 1 2 2 2 2 2 3 3 3 1 1 1 1 1 1 . 10 15 . 8 1 3 9 Corruption Purged . | . . . . . . . . . . . . . . . . . . . . . . . . . . . . . . . . . Effects 206 | . . . . . . . . . . 4 15 . . 7 5 8 1 13 4 9 3 1 . 6 . 14 30 . 18 9 9 50 Message Errors 43 | . . . . . . . . . . 1 6 . . 2 1 . 1 3 2 3 . . . 2 . 2 4 . 3 . 2 11 Matter Fused 23 | . . . . . . . . . . . . . . . . 1 . 2 . . . . . . . 3 2 . 4 1 2 8 Heat Flow Errors 21 | . . . . . . . . . . 1 3 . . 3 1 . . 1 . . . . . . . 1 1 . . 1 3 6 Energy Discharges 20 | . . . . . . . . . . 2 . . . 2 1 3 . 3 1 2 . . . 1 . . . . 1 1 . 3 Parts Rejected 4 | . . . . . . . . . . . . . . . . . . . . . . . . . . . 2 . 1 . . 1 Data Loss (minor) 17 | . . . . . . . . . . . 4 . . . 2 . . 1 1 . 1 . . 1 . . 1 . 2 . 1 3 Data Loss (major) 1 | . . . . . . . . . . . . . . . . . . . . . . . . . . . . . . . . 1 Misfires 2 | . . . . . . . . . . . . . . . . . . . . . . . . . . . 2 . . . . . Misdirections 10 | . . . . . . . . . . . . . . . . . . . . . . . . . . 1 2 . . . . 7 Targeting Errors 58 | . . . . . . . . . . . 2 . . . . 3 . 3 . 3 2 1 . 1 . 6 14 . 6 6 1 10 Weapon Failures 7 | . . . . . . . . . . . . . . . . 1 . . . 1 . . . 1 . 1 2 . 1 . . . Overload Shots . | . . . . . . . . . . . . . . . . . . . . . . . . . . . . . . . . . Overflow Damage 803 | . . . . . . . . . . 183 . . . . 39 . . . . . . . . . . . . . 43 . . 538 Projectiles . | . . . . . . . . . . . . . . . . . . . . . . . . . . . . . . . . . Explosions 358 | . . . . . . . . . . 171 . . . . 39 . . . . . . . . . . . . . 43 . . 105 Melee 445 | . . . . . . . . . . 12 . . . . . . . . . . . . . . . . . . . . . 433 Knockbacks 4 | . . . 1 . . . 1 . . 1 . . . . . . . . . 1 . . . . . . . . . . . . Impact 4 | . . . 1 . . . 1 . . 1 . . . . . . . . . 1 . . . . . . . . . . . . Kinetic . | . . . . . . . . . . . . . . . . . . . . . . . . . . . . . . . . . Secondary . | . . . . . . . . . . . . . . . . . . . . . . . . . . . . . . . . . Self-Inflicted Damage 204 | . . . . . . . . . . . . . . . . . . . . . . . . . . . . . 151 . . 53 Shots 4 | . . . . . . . . . . . . . . . . . . . . . . . . . . . . . 3 . . 1 Rammed 19 | . 3 . 3 1 . . 2 . . . . . . . . . . . 1 4 . . . . . . 1 1 . 1 . 2 Targets Rammed 21 | . 3 . 3 1 . . 2 . . 2 . . . . . . . . 1 4 . . . . . . 1 1 . 1 . 2 Kicked . | . . . . . . . . . . . . . . . . . . . . . . . . . . . . . . . . . Crushed 2 | . . . . . . . . . . 2 . . . . . . . . . . . . . . . . . . . . . . Highest Temperature 529 | . 10 . 72 . . 130 153 3 357 246 227 . . 232 258 207 . 175 60 200 332 66 . 290 54 175 341 250 109 227 356 529 Average Temperature 80 | . 4 . 24 . . 63 48 3 65 53 83 . . 76 40 83 . 54 26 65 124 34 . 114 27 105 154 106 37 25 128 103 Received Heat Transfer 3249 | . 114 . 54 . . 54 189 120 117 156 180 . . . 390 234 . 141 27 133 54 9 . 53 . . 114 138 200 198 385 189 Effects 16 | . . . . . . . . . 1 . . . . . . . . . . . 3 . . . . . 1 . . . . 11 Shutdowns 5 | . . . . . . . . . . . . . . . . . . . . . 1 . . . . . . . . . . 4 Energy Bleed 3 | . . . . . . . . . . . . . . . . . . . . . . . . . . . . . . . . 3 Interference 7 | . . . . . . . . . 1 . . . . . . . . . . . 2 . . . . . 1 . . . . 3 Short Circuit 1 | . . . . . . . . . . . . . . . . . . . . . . . . . . . . . . . . 1 Siege Activations 12 | . . . . . . . . . . . . . . . . . . . . . . . . . . 1 . 2 5 3 1 . Total Turns 243 | . . . . . . . . . . . . . . . . . . . . . . . . . . 31 . 39 117 49 7 . Longest Duration 39 | . . . . . . . . . . . . . . . . . . . . . . . . . . 31 . 28 39 30 7 . Robots Corrupted 3 | . . . . . . . . . . . . . . 1 2 . . . . . . . . . . . . . . . . . Combat Hostiles 3 | . . . . . . . . . . . . . . 1 2 . . . . . . . . . . . . . . . . . Parts Fried 8 | . 1 . . . . . . . . . 1 . . 2 3 . . . . 1 . . . . . . . . . . . . Impact Corruptions 2 | . . . . . . . . . . 1 . . . . . . . . . . . . . . . . 1 . . . . . Robots Melted . | . . . . . . . . . . . . . . . . . . . . . . . . . . . . . . . . . Combat Hostiles . | . . . . . . . . . . . . . . . . . . . . . . . . . . . . . . . . . Parts Melted 11 | . . . . . . . . . . . . . . . . 1 . . . . . . . . . . . . . 1 7 2 Heat Transferred 5128 | . 200 . . . . . . . . 700 . . . . 200 . . . . 150 . . . . . . . . . . 3878 . Parts Sabotaged 4 | . . . . . . . . . . . . . . . . . . . . . . . . . . . . . . . . 4 Parts Stolen . | . . . . . . . . . . . . . . . . . . . . . . . . . . . . . . . . . Parts Stripped . | . . . . . . . . . . . . . . . . . . . . . . . . . . . . . . . . . Power Chain Reactions 6 | . 3 . . . . . . . . . . . . . 3 . . . . . . . . . . . . . . . . . Missiles Intercepted . | . . . . . . . . . . . . . . . . . . . . . . . . . . . . . . . . . Alert | -11 -10 -10 -9 -9 -9 -8 -8 -8 -8 -7 -7 -7 -7 -6 -6 -6 -6 -6 -5 -5 -5 -5 -5 -5 -4 -4 -4 -3 -3 -2 -2 -1 ------- Run | Scr Mat Min Mat Min Exi Min Mat Gar Mat Fac Low Low Dat Pro Fac Gar Fac Gar Fac Ext Cet Arc Hub Gar Fac Was Fac Res Gar Res Gar Acc Peak Influence 747 | 5 230 39 296 73 . 40 361 384 463 537 . . . . 320 195 91 274 220 570 508 208 80 306 160 2 168 337 747 583 735 723 Average Influence 263 | 1 88 39 181 73 . 38 133 307 283 391 . . . . 193 171 91 179 85 190 399 114 65 196 150 1 110 187 409 472 610 494 Maximum Alert Level 3 | . 1 . 1 . . . 1 1 2 2 . . . . 1 . . 1 1 2 2 1 . 1 . . . 1 3 2 3 3 Low Security (%) 46 | 100 86 100 57 100 . 100 79 . 16 7 . . . . 47 100 100 48 95 75 3 89 100 46 100 100 100 50 25 . . . Level 1 27 | . 13 . 42 . . . 20 100 72 36 . . . . 52 . . 51 4 7 54 10 . 53 . . . 49 29 1 . 10 Level 2 24 | . . . . . . . . . 11 55 . . . . . . . . . 17 41 . . . . . . . 19 98 83 78 Level 3 2 | . . . . . . . . . . . . . . . . . . . . . . . . . . . . . 25 . 16 10 Level 4 . | . . . . . . . . . . . . . . . . . . . . . . . . . . . . . . . . . Level 5 . | . . . . . . . . . . . . . . . . . . . . . . . . . . . . . . . . . High Security . | . . . . . . . . . . . . . . . . . . . . . . . . . . . . . . . . . Max Security . | . . . . . . . . . . . . . . . . . . . . . . . . . . . . . . . . . Squads Dispatched 43 | . 4 . 1 . . . 6 . 2 5 . . . . 6 . . . 3 1 . . . . 1 . 1 1 . 5 . 7 Investigation 2 | . . . . . . . 1 . . . . . . . . . . . . . . . . . . . . . . 1 . . Extermination 10 | . . . . . . . . . . 2 . . . . 1 . . . 2 . . . . . . . . 1 . 2 . 2 Reinforcement 23 | . 4 . 1 . . . 2 . 2 . . . . . 5 . . . 1 1 . . . . 1 . 1 . . 1 . 4 Assault 2 | . . . . . . . . . . . . . . . . . . . . . . . . . . . . . . 1 . 1 Garrison 6 | . . . . . . . 3 . . 3 . . . . . . . . . . . . . . . . . . . . . . Intercept . | . . . . . . . . . . . . . . . . . . . . . . . . . . . . . . . . . Construction Impeded 6 | . . . . . . . 1 . . . . . . . 2 . . . . 1 . . . . . . 1 . . . . 1 Haulers Reinforced 4 | . . . . . . . . . . . . . . . 2 . . . 1 . . . . . . . . . . 1 . . Stealth | -11 -10 -10 -9 -9 -9 -8 -8 -8 -8 -7 -7 -7 -7 -6 -6 -6 -6 -6 -5 -5 -5 -5 -5 -5 -4 -4 -4 -3 -3 -2 -2 -1 --------- Run | Scr Mat Min Mat Min Exi Min Mat Gar Mat Fac Low Low Dat Pro Fac Gar Fac Gar Fac Ext Cet Arc Hub Gar Fac Was Fac Res Gar Res Gar Acc Distress Signals 17 | . 1 . . . . . . . 2 . . . . . 2 . . . . 2 1 . 1 . . . . 2 . 3 . 3 Communications Jammed . | . . . . . . . . . . . . . . . . . . . . . . . . . . . . . . . . . Distress Signals . | . . . . . . . . . . . . . . . . . . . . . . . . . . . . . . . . . Times Spotted 432 | . 18 . 14 . . 3 18 5 15 33 12 1 . 1 29 4 . 8 8 43 15 4 1 11 1 6 12 17 44 31 27 51 Peak Tracking Total 15 | . 5 . 4 . . 3 4 5 3 5 7 . . 1 5 3 . 6 2 5 5 7 3 7 1 3 4 8 7 9 9 15 Tactical Retreats 38 | . 1 . . . . . 1 1 . 3 1 . . . 1 . . 1 . 2 . 1 . 1 . . 3 2 9 . 3 8 Traps | -11 -10 -10 -9 -9 -9 -8 -8 -8 -8 -7 -7 -7 -7 -6 -6 -6 -6 -6 -5 -5 -5 -5 -5 -5 -4 -4 -4 -3 -3 -2 -2 -1 ------- Run | Scr Mat Min Mat Min Exi Min Mat Gar Mat Fac Low Low Dat Pro Fac Gar Fac Gar Fac Ext Cet Arc Hub Gar Fac Was Fac Res Gar Res Gar Acc Traps Triggered 29 | . 5 . . . . . . 1 . 3 . . . . . . . 9 1 3 . . . . 1 . 1 1 . 1 1 2 Indirectly 3 | . 3 . . . . . . . . . . . . . . . . . . . . . . . . . . . . . . . Trap Hack Attempts . | . . . . . . . . . . . . . . . . . . . . . . . . . . . . . . . . . Triggered . | . . . . . . . . . . . . . . . . . . . . . . . . . . . . . . . . . Disarmed 10 | . . . . . . . . . . . . . . . . . . . . 10 . . . . . . . . . . . . Reprogrammed . | . . . . . . . . . . . . . . . . . . . . . . . . . . . . . . . . . Reused . | . . . . . . . . . . . . . . . . . . . . . . . . . . . . . . . . . Traps Extracted . | . . . . . . . . . . . . . . . . . . . . . . . . . . . . . . . . . Installed . | . . . . . . . . . . . . . . . . . . . . . . . . . . . . . . . . . Triggered 1 | . . . . . . . . . . . 1 . . . . . . . . . . . . . . . . . . . . . Exploded 1 | . . . . . 1 . . . . . . . . . . . . . . . . . . . . . . . . . . . Machines | -11 -10 -10 -9 -9 -9 -8 -8 -8 -8 -7 -7 -7 -7 -6 -6 -6 -6 -6 -5 -5 -5 -5 -5 -5 -4 -4 -4 -3 -3 -2 -2 -1 ---------- Run | Scr Mat Min Mat Min Exi Min Mat Gar Mat Fac Low Low Dat Pro Fac Gar Fac Gar Fac Ext Cet Arc Hub Gar Fac Was Fac Res Gar Res Gar Acc Machines Disabled 24 | . . . . . . . 1 1 1 7 . . . . 1 . . 1 . 6 . . . . . . 2 1 1 1 . 1 Max in Single Turn 7 | . . . . . . . 1 1 1 7 . . . . 1 . . 1 . 1 . . . . . . 1 1 1 1 . 1 Garrison Access 3 | . . . . . . . . . . 1 . . . . . . . . . . . . . . . . . . . . . 2 Garrison Relay 2 | . . . . . . . . 1 . . . . . . . . . 1 . . . . . . . . . . . . . . Energy Cycler 2 | . . . . . . . . . . . . . . . . . . . . 1 . . . . . . . . . . . 1 Machines Sabotaged . | . . . . . . . . . . . . . . . . . . . . . . . . . . . . . . . . . Garrisons Compromised . | . . . . . . . . . . . . . . . . . . . . . . . . . . . . . . . . . Overloaded Fab Kills . | . . . . . . . . . . . . . . . . . . . . . . . . . . . . . . . . . Fab Network Shutdowns . | . . . . . . . . . . . . . . . . . . . . . . . . . . . . . . . . . Hacking | -11 -10 -10 -9 -9 -9 -8 -8 -8 -8 -7 -7 -7 -7 -6 -6 -6 -6 -6 -5 -5 -5 -5 -5 -5 -4 -4 -4 -3 -3 -2 -2 -1 --------- Run | Scr Mat Min Mat Min Exi Min Mat Gar Mat Fac Low Low Dat Pro Fac Gar Fac Gar Fac Ext Cet Arc Hub Gar Fac Was Fac Res Gar Res Gar Acc Machines Accessed 49 | . 1 . 3 . 2 . 2 . 4 5 1 . 3 . 1 . 1 . 4 6 3 . 2 . . . 1 3 . 4 . 3 Terminals 26 | . . . 1 . . . 1 . 4 1 . . . . . . . . 2 6 3 . 1 . . . 1 2 . 3 . 1 Fabricators 2 | . . . . . . . . . . 1 . . . . . . . . 1 . . . . . . . . . . . . . Repair Stations 5 | . 1 . 2 . . . . . . 1 . . . . . . . . 1 . . . . . . . . . . . . . Recycling Units . | . . . . . . . . . . . . . . . . . . . . . . . . . . . . . . . . . Scanalyzers 1 | . . . . . . . . . . 1 . . . . . . . . . . . . . . . . . . . . . . Garrison Access 9 | . . . . . . . 1 . . 1 . . . . 1 . 1 . . . . . 1 . . . . 1 . 1 . 2 Total Hacks 130 | . 2 . 6 . 2 . 9 . 16 12 1 . 20 . 1 . 1 . 9 19 8 . 6 . . . 2 6 . 7 . 3 Successful 85 | . 2 . 5 . 2 . 4 . 11 9 1 . 20 . 1 . 1 . 5 14 1 . 3 . . . . 2 . 1 . 3 Failed 45 | . . . 1 . . . 5 . 5 3 . . . . . . . . 4 5 7 . 3 . . . 2 4 . 6 . . Catastrophic 9 | . . . . . . . . . . . . . . . . . . . 1 1 3 . . . . . 1 1 . 2 . . Database Lockouts . | . . . . . . . . . . . . . . . . . . . . . . . . . . . . . . . . . Manual 57 | . . . 2 . 1 . 6 . 9 3 . . . . . . . . 6 17 8 . 3 . . . 2 . . . . . Terminals 79 | . . . 2 . . . 6 . 16 3 . . . . . . . . 6 19 8 . 5 . . . 2 5 . 6 . 1 Fabricators 4 | . . . . . . . . . . 2 . . . . . . . . 2 . . . . . . . . . . . . . Repair Stations 9 | . 2 . 4 . . . . . . 2 . . . . . . . . 1 . . . . . . . . . . . . . Recycling Units . | . . . . . . . . . . . . . . . . . . . . . . . . . . . . . . . . . Scanalyzers 4 | . . . . . . . . . . 4 . . . . . . . . . . . . . . . . . . . . . . Garrison Access 11 | . . . . . . . 3 . . 1 . . . . 1 . 1 . . . . . 1 . . . . 1 . 1 . 2 Terminal Hacks 42 | . . . 1 . 2 . . . 5 1 1 . 20 . . . . . 2 6 1 . 1 . . . . 1 . . . 1 Record 7 | . . . . . 1 . . . . . . . 6 . . . . . . . . . . . . . . . . . . . Part Schematic 5 | . . . . . . . . . . . . . 5 . . . . . . . . . . . . . . . . . . . Robot Schematic 6 | . . . . . . . . . . . . . 6 . . . . . . . . . . . . . . . . . . . Robot Analysis 1 | . . . . . . . . . . . . . . . . . . . 1 . . . . . . . . . . . . . Prototype ID Bank 3 | . . . . . . . . . . . . . 3 . . . . . . . . . . . . . . . . . . . Open Door 1 | . . . . . . . . . . . 1 . . . . . . . . . . . . . . . . . . . . . Branch Access Points 3 | . . . 1 . . . . . . 1 . . . . . . . . 1 . . . . . . . . . . . . . Terminal Index 2 | . . . . . . . . . 1 . . . . . . . . . . 1 . . . . . . . . . . . . Unreport Threat 1 | . . . . . . . . . . . . . . . . . . . . . 1 . . . . . . . . . . . Locate Traps 1 | . . . . . . . . . 1 . . . . . . . . . . . . . . . . . . . . . . . Disarm Traps 2 | . . . . . . . . . . . . . . . . . . . . 2 . . . . . . . . . . . . Assault Status 1 | . . . . . . . . . 1 . . . . . . . . . . . . . . . . . . . . . . . Hauler Manifests 2 | . . . . . . . . . . . . . . . . . . . . 1 . . . . . . . . . . . 1 Zone Layout 6 | . . . . . . . . . 2 . . . . . . . . . . 2 . . 1 . . . . 1 . . . . EX-Prototype ID Bank 1 | . . . . . 1 . . . . . . . . . . . . . . . . . . . . . . . . . . . Fabricator Hacks 2 | . . . . . . . . . . . . . . . . . . . 2 . . . . . . . . . . . . . Load Schematic 1 | . . . . . . . . . . . . . . . . . . . 1 . . . . . . . . . . . . . Build 1 | . . . . . . . . . . . . . . . . . . . 1 . . . . . . . . . . . . . Repair Station Hacks 7 | . 2 . 4 . . . . . . 1 . . . . . . . . . . . . . . . . . . . . . . Scan Component 4 | . 1 . 2 . . . . . . 1 . . . . . . . . . . . . . . . . . . . . . . Repair 3 | . 1 . 2 . . . . . . . . . . . . . . . . . . . . . . . . . . . . . Recycling Unit Hacks . | . . . . . . . . . . . . . . . . . . . . . . . . . . . . . . . . . Scanalyzer 4 | . . . . . . . . . . 4 . . . . . . . . . . . . . . . . . . . . . . Insert Component 2 | . . . . . . . . . . 2 . . . . . . . . . . . . . . . . . . . . . . Analyze 2 | . . . . . . . . . . 2 . . . . . . . . . . . . . . . . . . . . . . Garrison Access Hacks 9 | . . . . . . . 1 . . 1 . . . . 1 . 1 . . . . . 1 . . . . 1 . 1 . 2 Unlock Access 6 | . . . . . . . 1 . . . . . . . 1 . 1 . . . . . 1 . . . . 1 . 1 . . Seal Access 3 | . . . . . . . . . . 1 . . . . . . . . . . . . . . . . . . . . . 2 Unauthorized Hacks 21 | . . . . . . . 3 . 6 2 . . . . . . . . 1 8 . . 1 . . . . . . . . . Terminals 21 | . . . . . . . 3 . 6 2 . . . . . . . . 1 8 . . 1 . . . . . . . . . Track 5 | . . . . . . . 1 . 1 1 . . . . . . . . . 2 . . . . . . . . . . . . Assimilate 3 | . . . . . . . 1 . 1 . . . . . . . . . 1 . . . . . . . . . . . . . Botnet 12 | . . . . . . . 1 . 4 1 . . . . . . . . . 5 . . 1 . . . . . . . . . Operators 1 | . . . . . . . . . . . . . . . . . . . . 1 . . . . . . . . . . . . Fabricators . | . . . . . . . . . . . . . . . . . . . . . . . . . . . . . . . . . Repair Stations . | . . . . . . . . . . . . . . . . . . . . . . . . . . . . . . . . . Recycling Units . | . . . . . . . . . . . . . . . . . . . . . . . . . . . . . . . . . Scanalyzers . | . . . . . . . . . . . . . . . . . . . . . . . . . . . . . . . . . Garrison Access . | . . . . . . . . . . . . . . . . . . . . . . . . . . . . . . . . . Data Cores Recovered 2 | . . . . . . . . . . . . . . . . . . . . . . . . . . . 1 . . . . 1 Used 2 | . . . . . . . . . . . . . . . . . . . . . . . . . . . 1 . . . . 1 Hacking Detections 33 | . 1 . 3 . . . 2 . 2 3 . . . . 1 . . . 4 4 3 . 1 . . . 1 3 . 4 . 1 Full Trace Events 2 | . . . . . . . 1 . . . . . . . . . . . . . . . . . . . . . . 1 . . Feedback Events . | . . . . . . . . . . . . . . . . . . . . . . . . . . . . . . . . . Feedback Blocked . | . . . . . . . . . . . . . . . . . . . . . . . . . . . . . . . . . Robot Schematics Acquired 6 | . . . . . . . . . . . . . 6 . . . . . . . . . . . . . . . . . . . Robots Built . | . . . . . . . . . . . . . . . . . . . . . . . . . . . . . . . . . Matter . | . . . . . . . . . . . . . . . . . . . . . . . . . . . . . . . . . Time . | . . . . . . . . . . . . . . . . . . . . . . . . . . . . . . . . . Total Robot Build Rating . | . . . . . . . . . . . . . . . . . . . . . . . . . . . . . . . . . Part Schematics Acquired 7 | . . . . . . . . . . 2 . . 5 . . . . . . . . . . . . . . . . . . . Parts Built 2 | . . . . . . . . . . . . . . . . . . . 2 . . . . . . . . . . . . . Matter 168 | . . . . . . . . . . . . . . . . . . . 168 . . . . . . . . . . . . . Time 42 | . . . . . . . . . . . . . . . . . . . 42 . . . . . . . . . . . . . Total Part Build Rating 8 | . . . . . . . . . . . . . . . . . . . 8 . . . . . . . . . . . . . Parts Repaired 3 | . 1 . 2 . . . . . . . . . . . . . . . . . . . . . . . . . . . . . Time 103 | . 51 . 52 . . . . . . . . . . . . . . . . . . . . . . . . . . . . . Parts Recycled . | . . . . . . . . . . . . . . . . . . . . . . . . . . . . . . . . . Recycled Matter . | . . . . . . . . . . . . . . . . . . . . . . . . . . . . . . . . . Retrieved Matter . | . . . . . . . . . . . . . . . . . . . . . . . . . . . . . . . . . Retrieved Components . | . . . . . . . . . . . . . . . . . . . . . . . . . . . . . . . . . Parts Scanalyzed 2 | . . . . . . . . . . 2 . . . . . . . . . . . . . . . . . . . . . . Part Schematics Acquired 2 | . . . . . . . . . . 2 . . . . . . . . . . . . . . . . . . . . . . Parts Damaged 1 | . . . . . . . . . . 1 . . . . . . . . . . . . . . . . . . . . . . Bothacking | -11 -10 -10 -9 -9 -9 -8 -8 -8 -8 -7 -7 -7 -7 -6 -6 -6 -6 -6 -5 -5 -5 -5 -5 -5 -4 -4 -4 -3 -3 -2 -2 -1 ------------ Run | Scr Mat Min Mat Min Exi Min Mat Gar Mat Fac Low Low Dat Pro Fac Gar Fac Gar Fac Ext Cet Arc Hub Gar Fac Was Fac Res Gar Res Gar Acc Used RIF Installer 3 | . . . . . . . . 1 . . . . . . . 1 . 1 . . . . . . . . . . . . . . Coupler Efficiency 1 | . . . . . . . . . . . . . . . . . . 1 . . . . . . . . . . . . . . Structural Interface 1 | . . . . . . . . . . . . . . . . 1 . . . . . . . . . . . . . . . . Robots Hacked . | . . . . . . . . . . . . . . . . . . . . . . . . . . . . . . . . . Non-combat . | . . . . . . . . . . . . . . . . . . . . . . . . . . . . . . . . . Combat . | . . . . . . . . . . . . . . . . . . . . . . . . . . . . . . . . . Robot Hacks Applied . | . . . . . . . . . . . . . . . . . . . . . . . . . . . . . . . . . Relay Couplers Released 12 | . . . . . . . . 5 . 2 . . . . . . . 5 . . . . . . . . . . . . . . Machine Destruction 12 | . . . . . . . . 5 . 2 . . . . . . . 5 . . . . . . . . . . . . . . Robots Rewired 10 | . . . . . . . . . . . . . . . . . . . . 10 . . . . . . . . . . . . Allies Hacked 1 | . . . . . . . . . . . . . . . . . . . . . . . . . . . 1 . . . . . Hacks Repelled . | . . . . . . . . . . . . . . . . . . . . . . . . . . . . . . . . . Allies | -11 -10 -10 -9 -9 -9 -8 -8 -8 -8 -7 -7 -7 -7 -6 -6 -6 -6 -6 -5 -5 -5 -5 -5 -5 -4 -4 -4 -3 -3 -2 -2 -1 -------- Run | Scr Mat Min Mat Min Exi Min Mat Gar Mat Fac Low Low Dat Pro Fac Gar Fac Gar Fac Ext Cet Arc Hub Gar Fac Was Fac Res Gar Res Gar Acc Total Allies 26 | . . 2 . . . . . . . . . . . 1 . . . . 4 15 . 3 . . . 1 . . . . . . Largest Group 7 | . . 2 2 1 1 . . . . . . . . 1 1 . . . 4 7 . 3 . . . 1 1 . . . . . Highest-Rated Group 357 | . . 45 45 31 31 . . . . . . . . 94 94 . . . 103 207 . 357 . . . 46 46 . . . . . Highest-Rated Ally 156 | . . 31 31 31 31 . . . . . . . . 94 94 . . . 31 156 . 122 . . . 46 46 . . . . . Total Orders 2 | . . . . . . . . . . . . . . . . . . . . 2 . . . . . . . . . . . . STAY 1 | . . . . . . . . . . . . . . . . . . . . 1 . . . . . . . . . . . . FOLLOW 1 | . . . . . . . . . . . . . . . . . . . . 1 . . . . . . . . . . . . Ally Attacks 150 | . . . 25 . . . . . . . . . . . 1 . . . 18 65 . 19 . . . 22 . . . . . . Total Damage 3474 | . . . 294 . . . . . . . . . . . . . . . 310 1405 . 800 . . . 665 . . . . . . Kills 29 | . . . 6 . . . . . . . . . . . . . . . 3 14 . 4 . . . 2 . . . . . . Allies Corrupted 2 | . . . . . . . . . . . . . . . . . . . 1 . . . . . . . 1 . . . . . Allies Melted 1 | . . . . . . . . . . . . . . . . . . . . . . 1 . . . . . . . . . . Intel | -11 -10 -10 -9 -9 -9 -8 -8 -8 -8 -7 -7 -7 -7 -6 -6 -6 -6 -6 -5 -5 -5 -5 -5 -5 -4 -4 -4 -3 -3 -2 -2 -1 ------- Run | Scr Mat Min Mat Min Exi Min Mat Gar Mat Fac Low Low Dat Pro Fac Gar Fac Gar Fac Ext Cet Arc Hub Gar Fac Was Fac Res Gar Res Gar Acc Robot Analysis Total 1 | . . . . . . . . . . . . . . . . . . . 1 . . . . . . . . . . . . . Derelict Logs Recovered 3 | . . . . . . . . . . . . 2 . 1 . . . . . . . . . . . . . . . . . . Drone Launches . | . . . . . . . . . . . . . . . . . . . . . . . . . . . . . . . . . Drone Recoveries . | . . . . . . . . . . . . . . . . . . . . . . . . . . . . . . . . . Exploration | -11 -10 -10 -9 -9 -9 -8 -8 -8 -8 -7 -7 -7 -7 -6 -6 -6 -6 -6 -5 -5 -5 -5 -5 -5 -4 -4 -4 -3 -3 -2 -2 -1 ------------- Run | Scr Mat Min Mat Min Exi Min Mat Gar Mat Fac Low Low Dat Pro Fac Gar Fac Gar Fac Ext Cet Arc Hub Gar Fac Was Fac Res Gar Res Gar Acc Turns Passed 20621 | 109 610 34 583 205 629 272 693 446 869 1840 904 341 136 580 825 479 105 592 979 1951 439 77 84 1279 424 206 338 816 771 959 606 1440 Spaces Moved 9815 | 57 289 22 275 128 355 121 192 163 413 867 489 206 84 329 297 242 69 237 433 794 165 42 53 272 170 82 156 365 254 375 313 1506 Core 324 | 2 . . . . . . . . . . . . . . . . . . . . . . . . . . . . . 52 122 148 Treads 7431 | 55 289 22 275 128 355 121 192 163 413 867 489 206 84 329 71 . . 33 433 794 165 42 53 272 170 82 156 365 254 323 191 39 Legs 741 | . . . . . . . . . . . . . . . 226 242 69 204 . . . . . . . . . . . . . . Wheels . | . . . . . . . . . . . . . . . . . . . . . . . . . . . . . . . . . Hover 1319 | . . . . . . . . . . . . . . . . . . . . . . . . . . . . . . . . 1319 Flight . | . . . . . . . . . . . . . . . . . . . . . . . . . . . . . . . . . Fastest Speed 45 | 50 160 160 160 160 160 180 155 160 160 160 160 162 162 162 150 150 150 150 180 162 160 160 160 160 160 160 160 155 161 50 50 45 Average Speed 146 | 156 160 160 160 160 175 180 174 160 160 174 161 162 162 162 155 150 150 154 181 176 165 161 160 160 160 160 160 157 161 148 123 52 Slowest Speed 240 | 160 160 160 160 160 180 180 180 160 160 183 162 162 162 162 240 150 150 180 182 182 182 180 160 160 160 160 160 161 161 170 180 160 Overloaded Moves . | . . . . . . . . . . . . . . . . . . . . . . . . . . . . . . . . . Propulsion Burnouts . | . . . . . . . . . . . . . . . . . . . . . . . . . . . . . . . . . Robots Hopped . | . . . . . . . . . . . . . . . . . . . . . . . . . . . . . . . . . Cave-ins Triggered 2 | . . . . . . . . . . . . . . . . . . . . . . . . . . . . . 1 . . 1 Exploration Rate (%) 36 | 5 51 10 30 33 71 37 25 36 46 25 52 52 70 59 11 36 3 41 10 82 62 64 13 41 10 66 7 10 50 16 37 43 Regions Visited 32 Branch Regions 12 Pre-discovered Areas 3 | . . . . . 1 . . . . . . 1 1 . . . . . . . . . . . . . . . . . . . Known Exits Taken 10 | . . . 1 . . . 1 . . 1 . . . 1 1 . 1 . 1 . . . 1 . . . . 1 . 1 . . Unknown Exits Taken 14 | 1 1 1 . 1 1 1 . . 1 . 1 1 1 . . . . . . 1 1 1 . . . . 1 . . . . . Scrap Searched 7 | . . 1 . . . . . . . . 2 . . 4 . . . . . . . . . . . . . . . . . . Spaces Dug 91 | . . . . . . . 9 . 18 8 . . . 10 2 . . . 9 . . . . . . . . 4 . 7 . 24 Terrain Destroyed 236 | . 6 . . . . . 23 . 18 27 . . . 10 22 6 . 8 9 17 5 . . . . 1 4 5 25 7 2 41 Melee 79 | . . . . . . . . . 18 8 . . . 10 2 . . . 9 . . . . . . . . 4 . 7 . 21 Projectile 46 | . . . . . . . . . . . . . . . 5 6 . 2 . 10 5 . . . . 1 4 1 10 . 2 . AOE 111 | . 6 . . . . . 23 . . 19 . . . . 15 . . 6 . 7 . . . . . . . . 15 . . 20 Actions | -11 -10 -10 -9 -9 -9 -8 -8 -8 -8 -7 -7 -7 -7 -6 -6 -6 -6 -6 -5 -5 -5 -5 -5 -5 -4 -4 -4 -3 -3 -2 -2 -1 --------- Run | Scr Mat Min Mat Min Exi Min Mat Gar Mat Fac Low Low Dat Pro Fac Gar Fac Gar Fac Ext Cet Arc Hub Gar Fac Was Fac Res Gar Res Gar Acc Total 14321 | 70 398 21 377 128 360 163 484 309 527 1056 553 208 84 356 482 309 73 442 584 1160 243 48 52 1041 317 126 192 525 491 663 478 2001 Wait 2578 | 1 61 . 58 . . 38 231 128 33 62 5 . . . 11 31 . 98 79 126 . 1 . 708 134 23 . 63 154 175 102 256 Move 9786 | 56 288 21 274 127 354 120 192 162 412 866 488 205 83 328 297 241 68 236 432 793 164 41 52 271 170 81 155 365 253 375 312 1504 Hop . | . . . . . . . . . . . . . . . . . . . . . . . . . . . . . . . . . Pick Up 199 | 4 7 . 6 . 2 . 10 1 11 11 3 . . 2 17 5 2 14 8 13 12 1 . 4 3 3 . 8 9 10 4 29 Fast Attach 114 | 7 2 . . . . . 1 . 1 6 2 . . . 8 2 . 2 4 6 2 . . 2 . . 4 9 2 4 18 32 Attach 97 | . . . 2 . . . 2 1 2 8 1 . . . 15 5 1 6 3 2 7 . . 1 2 . 2 2 6 6 3 20 Detach 6 | . 1 . . . . . . . . . . . . . . . . . . . . . . . . . . . 1 . 1 3 Swap 228 | . 6 . 8 . 2 . 7 . 10 21 17 1 1 8 26 2 . 8 16 16 11 3 . 12 5 1 6 19 5 8 2 7 Drop 303 | . 8 . 8 . 2 . 9 1 10 17 9 . . 4 23 3 2 22 19 27 10 1 . 11 1 5 3 21 4 28 16 39 Fire 672 | 2 22 . 18 . . 5 30 16 30 51 28 2 . 4 83 20 . 18 13 76 37 1 . 32 2 13 21 28 57 35 20 8 Melee 175 | . . . . . . . . . 18 12 . . . 10 2 . . . 9 . . . . . . . . 9 . 21 . 94 Ram 2 | . . . . . . . . . . . . . . . . . . . . . . . . . . . . . . . . 2 Kick . | . . . . . . . . . . . . . . . . . . . . . . . . . . . . . . . . . Crush 19 | . 3 . 3 1 . . 2 . . 2 . . . . . . . . 1 4 . . . . . . 1 1 . 1 . . Escape Stasis 49 | . . . . . . . . . . . . . . . . . . 38 . 4 . . . . . . . . . . . 7 Rewire 93 | . . . . . . . . . . . . . . . . . . . . 93 . . . . . . . . . . . . Trap . | . . . . . . . . . . . . . . . . . . . . . . . . . . . . . . . . . Miscellaneous . | . . . . . . . . . . . . . . . . . . . . . . . . . . . . . . . . . Route ------- -11/Scrapyard -10/Materials (discovered 2 exits: *Mat / [*Min]) -10/Mines -9/Materials (discovered 3 exits: *Mat / *Min / Sto) -9/Mines -9/Exiles -8/Mines -8/Materials (discovered 2 exits: *Fac / Gar) -8/Garrison -8/Materials -7/Factory (discovered 3 exits: *Fac / *Low x2) -7/Lower Caves -7/Lower Caves -7/Data Miner -6/Proximity Caves -6/Factory -6/Garrison -6/Factory -6/Garrison -5/Factory (discovered 4 exits: Upp x2 / *Ext x2) -5/Extension (discovered 3 exits: [*Fac x2] / *Cet) -5/Cetus -5/Archives -5/Hub_04(d) (discovered 2 exits: [Fac] / Gar) -5/Garrison -4/Factory -4/Waste -4/Factory -3/Research -3/Garrison -2/Research -2/Garrison -1/Access To Epsilon Eridani History --------- Turn | Location | Event 7 | -11/Scrapyard | Discovered new exit (range 16) 110 | -11/Scrapyard | Entered Materials 300 | -10/Materials | Build established: Mutant 376 | -10/Materials | Discovered new exit (range 7) 638 | -10/Materials | Repaired Imp. Assault Rifle 695 | -10/Materials | Discovered new exit (range 10) 720 | -10/Materials | Entered Mines 744 | -10/Mines | Discovered new exit (range 6) 754 | -10/Mines | Entered Materials 754 | -9/Materials | Accompanied by 2 allies 754 | -9/Materials | Evolved 2 slots: Weapon x2 759 | -9/Materials | Led the pair of lost Derelicts to an unsafe place 974 | -9/Materials | Repaired Lgt. Treads 1152 | -9/Materials | Discovered new exit (range 13) 1247 | -9/Materials | Identified exit to Mines 1247 | -9/Materials | Identified exit to Storage 1293 | -9/Materials | Repaired Lgt. Treads 1337 | -9/Materials | Entered Mines 1337 | -9/Mines | Accompanied by 1 ally 1371 | -9/Mines | Build established: Scavenger-Gunner 1536 | -9/Mines | Deemed a non-threat by the Exiles lab entrance 1536 | -9/Mines | Discovered new exit (range 5) 1542 | -9/Mines | Entered Exiles 1542 | -9/Exiles | Accompanied by 1 ally 1572 | -9/Exiles | Led the pair of lost Derelicts to a safe place 1582 | -9/Exiles | Met 8R-AWN 1610 | -9/Exiles | Met EX-HEX 1705 | -9/Exiles | Met EX-DEC 1745 | -9/Exiles | Met EX-BIN 1885 | -9/Exiles | Learned location of Zion (-6) 1941 | -9/Exiles | Aligned with FarCom system 1943 | -9/Exiles | Given EX-Vault access code 1961 | -9/Exiles | Build established: Gunner 1986 | -9/Exiles | Opened EX-Vault 1997 | -9/Exiles | Found AWS/Thermal 2032 | -9/Exiles | Warned to stay clear of 0b10 Research branches 2060 | -9/Exiles | Exiles lab attacked by MAIN.C 2151 | -9/Exiles | Discovered new exit (range 14) 2171 | -9/Exiles | Left Exiles lab with AWS/Thermal 2171 | -9/Exiles | Entered Mines 2434 | -8/Mines | Discovered new exit (range 4) 2443 | -8/Mines | Entered Materials 2443 | -8/Materials | Evolved 2 slots: Propulsion x1, Utility x1 2833 | -8/Materials | Discovered new exit (range 4) 2851 | -8/Materials | Garrison activated, responded to threat 2865 | -8/Materials | Build established: Skirmisher 3136 | -8/Materials | Identified exit to Garrison 3136 | -8/Materials | Entered Garrison 3144 | -8/Garrison | Installed Relay Interface Framework 3200 | -8/Garrison | Triggered checkpoint 3232 | -8/Garrison | Garrison Relay disabled 3446 | -8/Garrison | Triggered checkpoint 3568 | -8/Garrison | Discovered new exit (range 10) 3582 | -8/Garrison | Entered Materials 4445 | -8/Materials | Discovered new exit (range 4) 4451 | -8/Materials | Entered Factory 4451 | -7/Factory | Evolved 2 slots: Propulsion x1, Utility x1 4556 | -7/Factory | Build established: Hauler-Skirmisher 5124 | -7/Factory | Destroyed 7 combat bots 5388 | -7/Factory | Build established: Scavenger-Skirmisher 6152 | -7/Factory | Identified exit to Lower Caves 6180 | -7/Factory | Discovered new exit (range 15) 6291 | -7/Factory | Entered Lower Caves 7034 | -7/Lower Caves | Discovered new exit (range 6) 7195 | -7/Lower Caves | Entered another Lower Caves area 7369 | -7/Lower Caves | Learned 8 Factory zone layouts 7516 | -7/Lower Caves | Discovered new exit (range 15) 7536 | -7/Lower Caves | Entered Data Miner 7536 | -7/Data Miner | Discovered new exit (range 6) 7567 | -7/Data Miner | Met Data Miner 7601 | -7/Data Miner | Learned location of Section 7 (-2) 7601 | -7/Data Miner | Acquired the access code to Warlord's prototype stash 7627 | -7/Data Miner | Received God Mode back door access code from Data Miner 7672 | -7/Data Miner | Entered Proximity Caves 7786 | -6/Proximity Caves | Identified exit to Factory 8066 | -6/Proximity Caves | Escorted by Enhanced Grunt 8252 | -6/Proximity Caves | Entered Factory 8252 | -6/Factory | Accompanied by 1 ally 8252 | -6/Factory | Evolved 2 slots: Utility x2 8470 | -6/Factory | Lost 4 parts (2n2w) 8527 | -6/Factory | Lost 5 parts (1p2n1u1w) 8807 | -6/Factory | Lost 4 parts (1p3w) 9077 | -6/Factory | Identified exit to Garrison 9077 | -6/Factory | Entered Garrison 9086 | -6/Garrison | Triggered checkpoint 9287 | -6/Garrison | Triggered checkpoint 9291 | -6/Garrison | Triggered checkpoint 9338 | -6/Garrison | Lost 4 parts (1u3w) 9406 | -6/Garrison | Found Imp. Powered Armor 9409 | -6/Garrison | Found Imp. Powered Armor 9412 | -6/Garrison | Found Imp. Powered Armor 9440 | -6/Garrison | Discovered new exit (range 10) 9463 | -6/Garrison | Expanded RIF knowledge: Structural Interface 9494 | -6/Garrison | Spotted B-75 Beast 9556 | -6/Garrison | Entered Factory 9647 | -6/Factory | Identified exit to Garrison 9661 | -6/Factory | Entered Garrison 9669 | -6/Garrison | Expanded RIF knowledge: Coupler Efficiency 9706 | -6/Garrison | Triggered checkpoint 9722 | -6/Garrison | Garrison Relay disabled 9894 | -6/Garrison | Triggered checkpoint 9964 | -6/Garrison | Triggered checkpoint 10095 | -6/Garrison | Discovered new exit (range 10) 10112 | -6/Garrison | Triggered checkpoint 10253 | -6/Garrison | Entered Factory 10253 | -5/Factory | Evolved 2 slots: Power x1, Utility x1 10564 | -5/Factory | Build established: Scavenger-Gunner 10608 | -5/Factory | Allied Derelicts emerged from ambush trap array 10639 | -5/Factory | Identified exit to Upper Caves 10639 | -5/Factory | Identified exit to Extension 10988 | -5/Factory | Fabricated Med. Treads (x2) 11232 | -5/Factory | Entered Extension 11895 | -5/Extension | Rescued a captive Derelict 11921 | -5/Extension | Rescued a captive Derelict 12315 | -5/Extension | Spotted B-75 Beast 12326 | -5/Extension | Allies destroyed B-75 Beast 12358 | -5/Extension | Destroyed B-75 Beast 12382 | -5/Extension | Disrupted transfer network 12468 | -5/Extension | Rescued a captive Derelict 12675 | -5/Extension | Energy Cycler disabled 12684 | -5/Extension | Rescued a captive Derelict 12789 | -5/Extension | Rescued A7 12809 | -5/Extension | Destroyed 7 combat bots 12837 | -5/Extension | Discovered new exit (range 14) 12975 | -5/Extension | Extracted ID and sensor layout for unrecognized location from A7's data core 12979 | -5/Extension | Found Prototype Protection 12979 | -5/Extension | Identified Med. Regenerative Plating 13104 | -5/Extension | Discovered new exit (range 16) 13104 | -5/Extension | Discovered new exit (range 16) 13170 | -5/Extension | Disrupted transfer network 13183 | -5/Extension | Entered Cetus 13243 | -5/Cetus | Spotted Cetus Guard 13250 | -5/Cetus | Spotted Cetus Guard 13251 | -5/Cetus | Destroyed Cetus Guard 13264 | -5/Cetus | Destroyed Cetus Guard 13282 | -5/Cetus | Destroyed Cetus Guard 13297 | -5/Cetus | Destroyed Cetus Guard 13341 | -5/Cetus | Lost 6 parts (3n3w) 13357 | -5/Cetus | Destroyed 11 combat bots 13572 | -5/Cetus | Discovered new exit (range 15) 13622 | -5/Cetus | Entered Archives 13650 | -5/Archives | Met Zhirov 13656 | -5/Archives | Reinforcements dispatched to Archives 13668 | -5/Archives | Read partially decrypted archive contents 13671 | -5/Archives | Discovered new exit (range 15) 13699 | -5/Archives | Entered Hub_04(d) 13714 | -5/Hub_04(d) | Discovered new exit (range 19) 13773 | -5/Hub_04(d) | Identified exit to Garrison 13783 | -5/Hub_04(d) | Entered Garrison 13830 | -5/Garrison | Spotted B-75 Beast 13835 | -5/Garrison | Triggered checkpoint 13925 | -5/Garrison | Destroyed B-75 Beast 15019 | -5/Garrison | Discovered new exit (range 13) 15062 | -5/Garrison | Entered Factory 15062 | -4/Factory | Evolved 2 slots: Propulsion x1, Utility x1 15486 | -4/Factory | Sucked down chute 15486 | -4/Factory | Entered Waste 15487 | -4/Waste | Met a frightened Derelict 15501 | -4/Waste | EMP discharged 15540 | -4/Waste | Spotted C-40 Crusher 15562 | -4/Waste | Allies destroyed C-40 Crusher 15573 | -4/Waste | Destroyed C-40 Crusher 15580 | -4/Waste | Allies destroyed C-40 Crusher 15587 | -4/Waste | Destroyed C-40 Crusher 15598 | -4/Waste | Spotted C-40 Crusher 15601 | -4/Waste | EMP discharged 15601 | -4/Waste | System corruption reached 10% 15604 | -4/Waste | Destroyed C-40 Crusher 15612 | -4/Waste | Spotted C-40 Crusher 15617 | -4/Waste | Destroyed C-40 Crusher 15668 | -4/Waste | Discovered new exit (range 15) 15692 | -4/Waste | Entered Factory 15692 | -4/Factory | Accompanied by 1 ally 15988 | -4/Factory | Discovered new exit (range 15) 16030 | -4/Factory | Entered Research 16030 | -3/Research | Evolved 2 slots: Propulsion x1, Utility x1 16171 | -3/Research | Found Exp. Signal Interpreter 16299 | -3/Research | Destroyed 7 combat bots 16737 | -3/Research | Found Prototype Processor 16737 | -3/Research | Identified Spectral Analyzer 16846 | -3/Research | Identified exit to Garrison 16846 | -3/Research | Entered Garrison 16988 | -3/Garrison | Spotted B-86 Titan 17008 | -3/Garrison | Destroyed B-86 Titan 17134 | -3/Garrison | Triggered checkpoint 17267 | -3/Garrison | Triggered checkpoint 17313 | -3/Garrison | Triggered checkpoint 17330 | -3/Garrison | Crushed by falling debris 17356 | -3/Garrison | Triggered checkpoint 17361 | -3/Garrison | Lost 3 parts (1p1u1w) 17609 | -3/Garrison | Discovered new exit (range 5) 17617 | -3/Garrison | Entered Research 17617 | -2/Research | Evolved 2 slots: Weapon x2 17663 | -2/Research | Incoming investigation squad redirected 17895 | -2/Research | First assault squad dispatched 17916 | -2/Research | Build established: Scavenger-Executioner 18576 | -2/Research | Identified exit to Garrison 18576 | -2/Research | Entered Garrison 18598 | -2/Garrison | Triggered checkpoint 19006 | -2/Garrison | Triggered checkpoint 19044 | -2/Garrison | Spotted B-90 Cyclops 19061 | -2/Garrison | Triggered checkpoint 19177 | -2/Garrison | Discovered new exit (range 10) 19182 | -2/Garrison | Entered Access 19182 | -1/Access | Evolved 2 slots: Power x1, Utility x1 19198 | -1/Access | Lost 4 parts (3n1u) 19361 | -1/Access | Energy Cycler disabled 19370 | -1/Access | Build established: Scavenger-Mutant 19432 | -1/Access | First assault squad dispatched 19593 | -1/Access | Incoming assault squad redirected 19710 | -1/Access | Lost 3 parts (1p1n1u) 19990 | -1/Access | Found Hvy. Reactive Plating 20061 | -1/Access | Spotted B-99 Colossus 20254 | -1/Access | Crushed by falling debris 20255 | -1/Access | Core integrity fell below 50% 20255 | -1/Access | System corruption reached 10% 20437 | -1/Access | Destroyed 7 combat bots 20620 | -1/Access | Discovered new exit (range 6) 20622 | *** | Escaped! Last Messages --------------- 20516_ System corrupted: Matter fused (-7). 20537_ RIF reveals location of hidden door. 20539_ Acquired Armor Integrity Analyzer. 20547_ Overheating: System interference. 20547_ Adv. Target Analyzer temporarily disabled. 20547_ Lance temporarily disabled. 20549_ System corrupted: Matter fused (-5). 20571_ RIF reveals location of hidden door. 20573_ System corrupted: Energy discharge (-102). 20591_ System corrupted: Component data lost. 20591_ Dropped Imp. Propulsion Shielding. 20591_ Acquired Imp. Power Shielding. 20593_ RIF reveals location of hidden door. 20604_ Dropped Lgt. Particle Reactor. 20614_ System corrupted: Heat flow error (+284). 20615_ Power failure, Quantum Reactor shutdown. 20615_ Power failure, Mic. Fission Core shutdown. 20620_ The Access Shell folds into the floor. 20620_ EXIT=FOUND 20622_ Power failure, Quantum Reactor shutdown. Map ----- +----------------------------------------------------+ | ??????????# #?????# ] # = #?????????? | | ??????????# #?????### ####? +?????????? | | ??????????# #########+####? #?????????? | | ??????????# # #?? #?????????? | | ??????????+ # #??###+#######?????????? | | ??????????# + """"" ###### #???????????????? | | ??????????# # """"" + #???????????????? | | ??????????# # """"" ########???????????????? | | ??????????# # """"" #??????????????????????? | | ??????????# # """"" #??????????????????????? | | ??????????# # """"" #??????????????????????? | | ??????????# # #??????????????????????? | | ??????????# # #??????????????????????? | | ??????????# # * #??????????????????????? | | ??????????# + #??????????????????????? | | ??????????# ##############??????????????????????? | | ??????????# #???????????????????????????????????? | | ??????????# #???????????????????????????????????? | | ??????????# #?????###???????????????????????????? | | ??????????# ####### ##########??????????????????? | | ??????????# """T""" "??????????????????? | | ??????????# """ """ "????BB????????????? | | ??????????# "????BB????????????? | | ??????????# "??????????????????? | | ??????????# "" "??????????????????? | | ??????????# @" "??????????????????? | | ??????????# "??????????????????? | | ??????????# "????BB????????????? | | ??????????# "????BB????????????? | | ??????????# "??????????????????? | | ??????????# ####### ##########??????????????????? | | ??????????# ??????###???????????????????????????? | | ??????????# ????????????????????????????????????? | | ??????????# ????????????????????????????????????? | | ??????????# ????????????????????????????????????? | | ??????????# ????????????????????????????????????? | | ??????????# ????????????????????????????????????? | | ??????????? ????????????????????????????????????? | | ?????????????????????????????????????????????????? | | ?????????????????????????????????????????????????? | | ?????????????????????????????????????????????????? | | ?????????????????????????????????????????????????? | | ?????????????????????????????????????????????????? | | ?????????????????????????????????????????????????? | | ?????????????????????????????????????????????????? | | ?????????????????????????????????????????????????? | | ?????????????????????????????????????????????????? | | ?????????????????????????????????????????????????? | | ?????????????????????????????????????????????????? | | ?????????????????????????????????????????????????? | +----------------------------------------------------+ Best States ------------- Heat Dissipation 109 Energy Generation 61 Energy Capacity 600 Matter Stores 300 Matter Capacity 300 Sight Range 24 Robot Scan Range 20 Terrain Scan Density 10 Corruption Prevention 20 Armor Coverage 1250 Resistance: KI 40 Power Shielding 66 Propulsion Shielding 66 Evasion (%) 68 Targeting Accuracy 8 Target Analysis 8 Core Analysis 10 Armor Integrity Analysis 33 Recoil Reduction 6 Salvage Targeting 4 Offensive Hacking 14 Defensive Hacking 10 Item Schematics ----------------- Autogun | -7/Factory | Scanalyzed Med. Treads | -7/Factory | Scanalyzed Combat Drone Bay | -7/Data Miner | Free Lgt. Regenerative Plating | -7/Data Miner | Free Cmb. Gravmag System | -7/Data Miner | Free Triangulator | -7/Data Miner | Free Tactical Coordination Suite | -7/Data Miner | Free Robot Schematics ------------------ S-27 Virus | -7/Data Miner | Free G-50 Soldier | -7/Data Miner | Free G-67 Veteran | -7/Data Miner | Free L-41 Fighter | -7/Data Miner | Free H-66 Slayer | -7/Data Miner | Free I-36 Angel | -7/Data Miner | Free Fabricated ------------ Med. Treads | x2 | -5/Factory Alien Tech Used ----------------- None Achievements -------------- None Challenges ------------ None Game ------ Seed ArcRiotFlakker Manual? 0 Play Time 02:10:36 Cumulative 513.7 hours Start 2020.05.06 @ 15:01:08 End 2020.05.06 @ 17:07:01 Sessions 1 Manual Loads 0 Difficulty Rogue Special Mode None Game No. 838 Rogue 838 Adventurer 0 Explorer 0 Win Type 0 Total 45 Types 30/1/5/7/2/0/0 Lore% 94 Gallery% 93 Achievement% 80 Wizard Run 0 Options --------- ASCII 1 Keyboard 0 Movement Numpad Keybinds 0 Fullscreen 0 Font 14/SmallcapsGlow Map View 76x50 Tactical HUD 1 Map Filters NONE Filters NONE Steam 1 RUN: a61275ac-e41b-431b-873c-c483620d1627